[Event "Sunway Sitges Chess Festival"]
[Date "2024.12.21"]
[White "Alinasab, Mobina"]
[Black "Srijak Sengupta"]
[WhiteElo "2330"]
[BlackElo "2112"]
[Round "4.33"]
[Result "1-0"]
[TimeControl "40/5400+30:1800+30"]

1. e4 {[%clk 1:30:56]} 1... c5 {[%clk 1:30:49]} 2. Nf3 {[%clk 1:31:14]} 2... e6
{[%clk 1:31:08]} 3. d4 {[%clk 1:31:37]} 3... cxd4 {[%clk 1:31:32]} 4. Nxd4
{[%clk 1:32:01]} 4... Nc6 {[%clk 1:31:57]} 5. Nc3 {[%clk 1:32:21]} 5... Qc7
{[%clk 1:32:21]} 6. Be3 {[%clk 1:32:44]} 6... a6 {[%clk 1:32:45]} 7. Qf3 {[%clk
1:33:08]} 7... Bb4 {[%clk 1:30:41]} 8. Nxc6 {[%clk 1:30:30]} 8... dxc6 {[%clk
1:28:24]} 9. Bd4 {[%clk 1:30:18]} 9... f6 {[%clk 1:28:16]} 10. O-O-O {[%clk
1:18:59]} 10... c5 {[%clk 1:10:14]} 11. Be3 {[%clk 1:18:50]} 11... Bxc3 {[%clk
1:10:32]} 12. bxc3 {[%clk 1:19:18]} 12... g6 {[%clk 1:08:34]} 13. Qg3 {[%clk
1:12:48]} 13... e5 {[%clk 0:57:15]} 14. Bc4 {[%clk 1:05:35]} 14... Bd7 {[%clk
0:50:34]} 15. f4 {[%clk 1:04:35]} 15... Ne7 {[%clk 0:48:36]} 16. fxe5 {[%clk
1:03:08]} 16... Qxe5 {[%clk 0:45:23]} 17. Bf4 {[%clk 1:02:19]} 17... Qxe4 {[%clk
0:44:18]} 18. Bd5 {[%clk 0:56:31]} 18... Qa4 {[%clk 0:43:34]} 19. Rhe1 {[%clk
0:56:02]} 19... Bf5 {[%clk 0:43:31]} 20. Bb3 {[%clk 0:54:48]} 20... Qa3+ {[%clk
0:43:55]} 21. Kb1 {[%clk 0:54:59]} 21... Rd8 {[%clk 0:40:36]} 22. Rxe7+ {[%clk
0:54:44]} 1-0

[Variant "Standard"]
[Site "Europe Echecs"]

[Event "Sunway Sitges Chess Festival"]
[Date "2024.12.21"]
[White "Mizzi, Jack"]
[Black "Lacasa Diaz, Josep Anton"]
[WhiteElo "2097"]
[BlackElo "2324"]
[Round "4.34"]
[Result "1/2-1/2"]
[TimeControl "40/5400+30:1800+30"]

1. d4 {[%clk 1:30:48]} 1... d5 {[%clk 1:30:49]} 2. Nf3 {[%clk 1:30:51]} 2... c5
{[%clk 1:31:00]} 3. c4 {[%clk 1:31:01]} 3... e6 {[%clk 1:31:24]} 4. cxd5 {[%clk
1:31:10]} 4... exd5 {[%clk 1:31:49]} 5. g3 {[%clk 1:31:28]} 5... Nf6 {[%clk
1:32:14]} 6. Bg2 {[%clk 1:31:26]} 6... Be7 {[%clk 1:32:30]} 7. O-O {[%clk
1:31:18]} 7... O-O {[%clk 1:32:47]} 8. dxc5 {[%clk 1:25:25]} 8... Bxc5 {[%clk
1:32:17]} 9. Nc3 {[%clk 1:24:25]} 9... h6 {[%clk 1:31:29]} 10. a3 {[%clk
1:24:35]} 10... a5 {[%clk 1:31:00]} 11. Qc2 {[%clk 1:20:47]} 11... Nc6 {[%clk
1:14:36]} 12. Rd1 {[%clk 1:07:06]} 12... d4 {[%clk 1:12:23]} 13. Na4 {[%clk
1:03:30]} 13... Ba7 {[%clk 1:11:46]} 14. Nc5 {[%clk 1:01:56]} 14... Qe7 {[%clk
1:08:38]} 15. Nd3 {[%clk 1:02:17]} 15... Bf5 {[%clk 1:00:00]} 16. Re1 {[%clk
0:59:28]} 16... Rfe8 {[%clk 0:53:07]} 17. Bf4 {[%clk 0:58:35]} 17... g5 {[%clk
0:48:42]} 18. Bd2 {[%clk 0:53:50]} 18... Ne4 {[%clk 0:47:53]} 19. Rac1 {[%clk
0:53:11]} 19... Rac8 {[%clk 0:44:46]} 20. Qd1 {[%clk 0:51:43]} 20... Qf6 {[%clk
0:42:11]} 21. h4 {[%clk 0:47:58]} 21... Rcd8 {[%clk 0:38:55]} 22. hxg5 {[%clk
0:45:15]} 22... hxg5 {[%clk 0:38:07]} 23. Rxc6 {[%clk 0:45:16]} 23... bxc6
{[%clk 0:37:03]} 24. Bxa5 {[%clk 0:44:39]} 24... Rd7 {[%clk 0:34:06]} 25. Bd2
{[%clk 0:41:59]} 25... Rde7 {[%clk 0:30:44]} 26. Qc1 {[%clk 0:41:58]} 26... c5
{[%clk 0:21:57]} 27. b3 {[%clk 0:37:21]} 27... Qg6 {[%clk 0:16:13]} 28. Kf1
{[%clk 0:34:27]} 28... Qh5 {[%clk 0:11:51]} 29. Bxg5 {[%clk 0:31:00]} 29... Nxg5
{[%clk 0:11:53]} 30. Nf4 {[%clk 0:31:23]} 30... Qh6 {[%clk 0:09:05]} 31. Nd5
{[%clk 0:31:34]} 31... Rxe2 {[%clk 0:04:18]} 32. Rxe2 {[%clk 0:28:30]} 32... Bd3
{[%clk 0:04:47]} 33. Nxg5 {[%clk 0:28:18]} 33... Rxe2 {[%clk 0:02:56]} 34. Kg1
{[%clk 0:28:43]} 34... f6 {[%clk 0:02:05]} 35. Nf4 {[%clk 0:28:58]} 35... Qxg5
{[%clk 0:01:37]} 36. Nxe2 {[%clk 0:28:54]} 36... Bxe2 {[%clk 0:02:02]} 37. Qe1
{[%clk 0:28:53]} 37... d3 {[%clk 0:01:59]} 38. Qa5 {[%clk 0:29:06]} 38... Qc1+
{[%clk 0:01:42]} 39. Kh2 {[%clk 0:29:29]} 39... Qh6+ {[%clk 0:02:11]} 40. Kg1
{[%clk 0:59:35]} 40... Qc1+ {[%clk 0:32:40]} 41. Kh2 {[%clk 0:59:58]} 41... Qh6+
{[%clk 0:32:38]} 42. Kg1 {[%clk 1:00:17]} 42... Qf8 {[%clk 0:23:37]} 43. Bd5+
{[%clk 0:55:01]} 43... Kh8 {[%clk 0:23:56]} 44. Bc4 {[%clk 0:55:12]} 44... Qe7
{[%clk 0:19:24]} 45. Qa6 {[%clk 0:54:46]} 45... Kg7 {[%clk 0:16:37]} 46. Qc8
{[%clk 0:47:34]} 46... Kh6 {[%clk 0:03:01]} 47. Qh8+ {[%clk 0:47:20]} 47... Kg6
{[%clk 0:03:27]} 48. Qg8+ {[%clk 0:47:30]} 48... Kf5 {[%clk 0:03:23]} 49. Qd5+
{[%clk 0:47:24]} 49... Kg6 {[%clk 0:02:59]} 50. Qg8+ {[%clk 0:47:14]} 50... Kf5
{[%clk 0:03:26]} 51. Qd5+ {[%clk 0:46:16]} 51... Kg6 {[%clk 0:01:10]} 1/2-1/2

[Variant "Standard"]
[Site "Europe Echecs"]

[Event "Sunway Sitges Chess Festival"]
[Date "2024.12.21"]
[White "Ghazaryan, Raffi"]
[Black "Domingo Nunez, Alejandro"]
[WhiteElo "2097"]
[BlackElo "2318"]
[Round "4.35"]
[Result "0-1"]
[TimeControl "40/5400+30:1800+30"]

1. e4 {[%clk 1:30:32]} 1... c5 {[%clk 1:29:01]} 2. Nf3 {[%clk 1:29:38]} 2... Nc6
{[%clk 1:29:26]} 3. Bb5 {[%clk 1:29:36]} 3... g6 {[%clk 1:29:40]} 4. Bxc6 {[%clk
1:29:50]} 4... bxc6 {[%clk 1:30:05]} 5. d4 {[%clk 1:29:37]} 5... cxd4 {[%clk
1:30:31]} 6. Qxd4 {[%clk 1:30:01]} 6... f6 {[%clk 1:24:36]} 7. c4 {[%clk
1:26:48]} 7... d6 {[%clk 1:20:03]} 8. O-O {[%clk 1:25:04]} 8... Nh6 {[%clk
1:18:04]} 9. Nc3 {[%clk 1:24:53]} 9... c5 {[%clk 1:15:43]} 10. Qd3 {[%clk
1:14:41]} 10... Nf7 {[%clk 1:15:54]} 11. b3 {[%clk 1:13:38]} 11... Bg7 {[%clk
1:15:08]} 12. Bb2 {[%clk 1:14:05]} 12... O-O {[%clk 1:14:11]} 13. Rad1 {[%clk
1:07:47]} 13... Bb7 {[%clk 1:00:28]} 14. Nd5 {[%clk 1:05:57]} 14... e6 {[%clk
1:00:31]} 15. Nc3 {[%clk 0:56:08]} 15... Qe7 {[%clk 0:39:56]} 16. Rfe1 {[%clk
0:48:00]} 16... Rad8 {[%clk 0:39:44]} 17. h3 {[%clk 0:42:37]} 17... Rfe8 {[%clk
0:34:37]} 18. Qb1 {[%clk 0:40:00]} 18... Qf8 {[%clk 0:29:22]} 19. Nd2 {[%clk
0:30:13]} 19... f5 {[%clk 0:28:19]} 20. exf5 {[%clk 0:25:40]} 20... gxf5 {[%clk
0:28:16]} 21. Nb5 {[%clk 0:25:07]} 21... Rd7 {[%clk 0:25:44]} 22. Nf1 {[%clk
0:20:51]} 22... a6 {[%clk 0:17:51]} 23. Nc3 {[%clk 0:19:16]} 23... Be5 {[%clk
0:15:21]} 24. Ne3 {[%clk 0:16:09]} 24... Nh6 {[%clk 0:03:57]} 25. Ne2 {[%clk
0:13:47]} 25... Rg7 {[%clk 0:03:12]} 26. f4 {[%clk 0:13:34]} 26... Rxg2+ {[%clk
0:02:27]} 27. Nxg2 {[%clk 0:13:32]} 27... Qg7 {[%clk 0:02:56]} 28. Ng3 {[%clk
0:13:04]} 28... Qxg3 {[%clk 0:02:28]} 29. Rd5 {[%clk 0:10:22]} 29... exd5 {[%clk
0:01:51]} 30. fxe5 {[%clk 0:10:05]} 30... d4 {[%clk 0:02:17]} 31. Qc2 {[%clk
0:10:04]} 31... dxe5 {[%clk 0:02:08]} 32. Bc1 {[%clk 0:09:50]} 32... Re6 {[%clk
0:01:56]} 33. Qf2 {[%clk 0:08:30]} 33... Qxh3 {[%clk 0:01:54]} 34. Nf4 {[%clk
0:06:26]} 34... Qh1# {[%clk 0:01:49]} 0-1

[Variant "Standard"]
[Site "Europe Echecs"]

[Event "Sunway Sitges Chess Festival"]
[Date "2024.12.21"]
[White "Adarsh D"]
[Black "Rice, Lana"]
[WhiteElo "1987"]
[BlackElo "1473"]
[Round "4.36"]
[Result "1-0"]
[TimeControl "40/5400+30:1800+30"]

1. e4 {[%clk 1:30:57]} 1... c5 {[%clk 1:22:40]} 2. Nf3 {[%clk 1:31:02]} 2... e6
{[%clk 1:22:57]} 3. d4 {[%clk 1:29:37]} 3... cxd4 {[%clk 1:23:17]} 4. Nxd4
{[%clk 1:29:54]} 4... a6 {[%clk 1:23:36]} 5. Be3 {[%clk 1:28:54]} 5... Qc7
{[%clk 1:23:18]} 6. Be2 {[%clk 1:25:05]} 6... Nf6 {[%clk 1:23:18]} 7. Bf3 {[%clk
1:24:30]} 7... Bb4+ {[%clk 1:22:12]} 8. c3 {[%clk 1:24:32]} 8... Bc5 {[%clk
1:22:05]} 9. O-O {[%clk 1:24:01]} 9... d6 {[%clk 1:21:28]} 10. Re1 {[%clk
1:20:01]} 10... O-O {[%clk 1:20:40]} 11. Nd2 {[%clk 1:17:21]} 11... Nbd7 {[%clk
1:12:34]} 12. Rc1 {[%clk 1:11:40]} 12... Ne5 {[%clk 1:13:15]} 13. Be2 {[%clk
1:11:13]} 13... b5 {[%clk 1:13:18]} 14. f4 {[%clk 1:08:38]} 14... Nc6 {[%clk
1:13:16]} 15. Bf3 {[%clk 1:03:57]} 15... Bb7 {[%clk 1:10:24]} 16. Kh1 {[%clk
0:58:30]} 16... Rac8 {[%clk 1:13:04]} 17. a4 {[%clk 0:55:47]} 17... Qb6 {[%clk
1:11:28]} 18. axb5 {[%clk 0:51:05]} 18... axb5 {[%clk 1:11:23]} 19. N2b3 {[%clk
0:41:39]} 19... Rfd8 {[%clk 1:11:01]} 20. Qe2 {[%clk 0:38:43]} 20... Nxd4 {[%clk
1:08:17]} 21. Bxd4 {[%clk 0:35:31]} 21... Bxd4 {[%clk 1:08:30]} 22. Nxd4 {[%clk
0:35:31]} 22... b4 {[%clk 1:08:06]} 23. Red1 {[%clk 0:28:36]} 23... bxc3 {[%clk
1:07:51]} 24. bxc3 {[%clk 0:28:26]} 24... Ba6 {[%clk 1:07:15]} 25. Qe1 {[%clk
0:28:14]} 25... Nd7 {[%clk 1:02:44]} 26. Qg3 {[%clk 0:24:28]} 26... Nc5 {[%clk
1:02:19]} 27. f5 {[%clk 0:23:58]} 27... e5 {[%clk 1:01:34]} 28. f6 {[%clk
0:23:11]} 28... g6 {[%clk 1:01:01]} 29. Nf5 {[%clk 0:22:44]} 29... Kh8 {[%clk
0:59:55]} 30. Ne7 {[%clk 0:21:36]} 30... Rb8 {[%clk 0:59:57]} 31. Qh4 {[%clk
0:20:25]} 31... Nd3 {[%clk 0:59:43]} 32. Rc2 {[%clk 0:20:14]} 32... Nf4 {[%clk
0:54:44]} 33. Qh6 {[%clk 0:19:38]} 33... Ne6 {[%clk 0:54:40]} 34. Bg4 {[%clk
0:19:38]} 34... Qb1 {[%clk 0:53:28]} 35. Rxb1 {[%clk 0:19:06]} 35... Rxb1+
{[%clk 0:53:42]} 36. Rc1 {[%clk 0:19:32]} 36... Rxc1+ {[%clk 0:53:59]} 37. Qxc1
{[%clk 0:19:58]} 37... g5 {[%clk 0:54:15]} 38. Bxe6 {[%clk 0:20:22]} 38... fxe6
{[%clk 0:54:39]} 39. Qxg5 {[%clk 0:20:47]} 39... Rg8 {[%clk 0:55:00]} 40. Qxg8#
{[%clk 0:51:12]} 1-0

[Variant "Standard"]
[Site "Europe Echecs"]

[Event "Sunway Sitges Chess Festival"]
[Date "2024.12.21"]
[White "Pisan, Kai"]
[Black "Chia, Zhi Kai Aaron"]
[WhiteElo "1972"]
[BlackElo "1615"]
[Round "4.37"]
[Result "1/2-1/2"]
[TimeControl "40/5400+30:1800+30"]

1. c4 {[%clk 1:30:55]} 1... c6 {[%clk 1:30:32]} 2. g3 {[%clk 1:31:14]} 2... d5
{[%clk 1:30:03]} 3. Nf3 {[%clk 1:31:35]} 3... Nf6 {[%clk 1:29:45]} 4. Bg2 {[%clk
1:31:46]} 4... Bf5 {[%clk 1:28:38]} 5. Qb3 {[%clk 1:30:01]} 5... Qb6 {[%clk
1:28:36]} 6. d3 {[%clk 1:29:25]} 6... Qxb3 {[%clk 1:27:11]} 7. axb3 {[%clk
1:29:41]} 7... e6 {[%clk 1:25:42]} 8. Be3 {[%clk 1:25:32]} 8... a6 {[%clk
1:22:12]} 9. Bd4 {[%clk 1:24:11]} 9... Nbd7 {[%clk 1:18:22]} 10. Bc3 {[%clk
1:22:59]} 10... h6 {[%clk 1:16:27]} 11. Nbd2 {[%clk 1:18:44]} 11... Be7 {[%clk
1:14:37]} 12. b4 {[%clk 1:14:51]} 12... O-O {[%clk 1:10:06]} 13. O-O {[%clk
1:12:48]} 13... Bh7 {[%clk 1:05:38]} 14. b3 {[%clk 1:08:46]} 14... Rfd8 {[%clk
0:58:34]} 15. Rfd1 {[%clk 0:59:58]} 15... Bf8 {[%clk 0:53:54]} 16. Nf1 {[%clk
0:55:54]} 16... g5 {[%clk 0:51:35]} 17. h3 {[%clk 0:51:28]} 17... Bg7 {[%clk
0:51:35]} 18. g4 {[%clk 0:42:41]} 18... Re8 {[%clk 0:46:21]} 19. Rac1 {[%clk
0:40:39]} 19... e5 {[%clk 0:44:21]} 20. Ng3 {[%clk 0:39:26]} 20... Rad8 {[%clk
0:42:36]} 21. e3 {[%clk 0:34:49]} 21... Kf8 {[%clk 0:31:10]} 22. Ne1 {[%clk
0:27:09]} 22... Rc8 {[%clk 0:30:20]} 23. e4 {[%clk 0:26:29]} 23... d4 {[%clk
0:29:44]} 24. Bd2 {[%clk 0:25:46]} 24... Kg8 {[%clk 0:28:12]} 25. Nc2 {[%clk
0:23:19]} 25... Nb6 {[%clk 0:27:00]} 26. Na3 {[%clk 0:22:12]} 26... Bf8 {[%clk
0:26:46]} 27. Re1 {[%clk 0:18:50]} 27... Na8 {[%clk 0:25:49]} 28. c5 {[%clk
0:16:27]} 28... Nc7 {[%clk 0:26:10]} 29. Nc4 {[%clk 0:16:21]} 29... Nb5 {[%clk
0:26:07]} 30. Bf3 {[%clk 0:14:36]} 30... Nd7 {[%clk 0:25:10]} 31. Kg2 {[%clk
0:13:22]} 31... Be7 {[%clk 0:22:55]} 32. Rh1 {[%clk 0:12:43]} 32... Kg7 {[%clk
0:20:49]} 33. Rce1 {[%clk 0:10:44]} 33... Rb8 {[%clk 0:17:17]} 34. Re2 {[%clk
0:08:35]} 34... Bg6 {[%clk 0:16:06]} 35. Rhe1 {[%clk 0:08:27]} 35... Bf6 {[%clk
0:16:08]} 36. Nf5+ {[%clk 0:06:33]} 36... Bxf5 {[%clk 0:16:30]} 37. exf5 {[%clk
0:06:07]} 37... Re7 {[%clk 0:14:51]} 38. Rc1 {[%clk 0:05:31]} 38... Ree8 {[%clk
0:13:41]} 39. Ree1 {[%clk 0:03:28]} 39... Rbd8 {[%clk 0:12:46]} 40. Ra1 {[%clk
0:32:27]} 40... Ra8 {[%clk 0:41:53]} 41. Na5 {[%clk 0:29:53]} 41... Rab8 {[%clk
0:41:30]} 42. Rec1 {[%clk 0:25:45]} 42... Na7 {[%clk 0:38:48]} 43. Nc4 {[%clk
0:18:17]} 43... Nb5 {[%clk 0:39:02]} 44. Na5 {[%clk 0:17:40]} 44... Na7 {[%clk
0:38:49]} 45. Be4 {[%clk 0:17:28]} 45... Rh8 {[%clk 0:38:56]} 46. Rh1 {[%clk
0:17:13]} 46... Rh7 {[%clk 0:37:16]} 47. Kg3 {[%clk 0:16:20]} 47... Rhh8 {[%clk
0:35:18]} 48. Be1 {[%clk 0:14:20]} 48... h5 {[%clk 0:35:24]} 49. Bd2 {[%clk
0:11:56]} 49... h4+ {[%clk 0:35:22]} 1/2-1/2

[Variant "Standard"]
[Site "Europe Echecs"]

[Event "Sunway Sitges Chess Festival"]
[Date "2024.12.21"]
[White "Turmel, Fabien"]
[Black "Barkasheva, Sofia"]
[WhiteElo "1876"]
[BlackElo "1653"]
[Round "4.38"]
[Result "1/2-1/2"]
[TimeControl "40/5400+30:1800+30"]

1. c4 {[%clk 1:30:57]} 1... c6 {[%clk 1:30:43]} 2. Nf3 {[%clk 1:31:13]} 2... d5
{[%clk 1:31:02]} 3. e3 {[%clk 1:31:37]} 3... Nf6 {[%clk 1:31:27]} 4. Nc3 {[%clk
1:32:01]} 4... e6 {[%clk 1:31:52]} 5. b3 {[%clk 1:32:17]} 5... Bd6 {[%clk
1:31:39]} 6. Bb2 {[%clk 1:32:32]} 6... O-O {[%clk 1:31:26]} 7. Qc2 {[%clk
1:32:55]} 7... Nbd7 {[%clk 1:30:46]} 8. Be2 {[%clk 1:33:12]} 8... Re8 {[%clk
1:28:10]} 9. O-O {[%clk 1:32:56]} 9... dxc4 {[%clk 1:27:22]} 10. bxc4 {[%clk
1:22:09]} 10... e5 {[%clk 1:26:00]} 11. Ng5 {[%clk 1:14:29]} 11... Nf8 {[%clk
1:23:41]} 12. Nge4 {[%clk 0:37:54]} 12... Nxe4 {[%clk 1:18:38]} 13. Nxe4 {[%clk
0:37:54]} 13... Bc7 {[%clk 1:18:48]} 14. Qc3 {[%clk 0:31:40]} 14... f5 {[%clk
1:07:15]} 15. Ng3 {[%clk 0:27:37]} 15... Ba5 {[%clk 1:04:01]} 16. Qb3 {[%clk
0:28:00]} 16... Qxd2 {[%clk 0:58:45]} 17. c5+ {[%clk 0:23:02]} 17... Be6 {[%clk
0:53:47]} 18. Bc4 {[%clk 0:23:23]} 18... Kh8 {[%clk 0:45:36]} 19. Bxe6 {[%clk
0:23:24]} 19... Nxe6 {[%clk 0:42:51]} 20. Nxf5 {[%clk 0:13:08]} 20... Nxc5
{[%clk 0:36:21]} 21. Qf7 {[%clk 0:08:52]} 21... Qd7 {[%clk 0:36:37]} 22. Qxd7
{[%clk 0:07:30]} 22... Nxd7 {[%clk 0:37:02]} 23. Rad1 {[%clk 0:07:46]} 23... Nf6
{[%clk 0:32:51]} 24. Nd6 {[%clk 0:07:57]} 24... Re7 {[%clk 0:32:51]} 25. Bxe5
{[%clk 0:07:46]} 25... Kg8 {[%clk 0:29:06]} 26. Bd4 {[%clk 0:-2:-16]} 26... Bb6
{[%clk 0:21:35]} 27. Nf5 {[%clk 0:01:41]} 27... Re6 {[%clk 0:19:00]} 28. Bb2
{[%clk 0:01:12]} 28... Bc5 {[%clk 0:15:45]} 29. Rd3 {[%clk 0:01:01]} 29... Kf7
{[%clk 0:03:30]} 30. Rc1 {[%clk 0:01:16]} 30... b6 {[%clk 0:03:21]} 31. g4
{[%clk 0:00:56]} 31... Re4 {[%clk 0:01:11]} 32. h3 {[%clk 0:01:10]} 32... Ra4
{[%clk 0:01:04]} 33. a3 {[%clk 0:00:48]} 33... Rg8 {[%clk 0:00:56]} 34. g5
{[%clk 0:00:43]} 34... Nd5 {[%clk 0:00:41]} 35. Nd4 {[%clk 0:00:39]} 35... Rc8
{[%clk 0:00:44]} 36. Nb3 {[%clk 0:00:54]} 36... Bxa3 {[%clk 0:00:47]} 37. Ra1
{[%clk 0:00:57]} 37... Nb4 {[%clk 0:00:42]} 38. Rd7+ {[%clk 0:00:40]} 38... Ke6
{[%clk 0:00:56]} 39. Rxg7 {[%clk 0:00:54]} 39... Nc2 {[%clk 0:00:41]} 40. Nd4+
{[%clk 0:30:58]} 40... Nxd4 {[%clk 0:30:34]} 41. exd4 {[%clk 0:31:22]} 41...
Bxb2 {[%clk 0:27:51]} 42. Rxa4 {[%clk 0:29:47]} 42... a5 {[%clk 0:27:11]} 43.
Rxh7 {[%clk 0:29:44]} 43... Bc3 {[%clk 0:26:43]} 44. Rc4 {[%clk 0:26:49]} 44...
Bb2 {[%clk 0:25:44]} 45. h4 {[%clk 0:23:23]} 45... b5 {[%clk 0:25:56]} 46. Rc5
{[%clk 0:15:40]} 46... Bxd4 {[%clk 0:24:53]} 47. Rh6+ {[%clk 0:16:01]} 47... Kd7
{[%clk 0:25:10]} 48. Rf5 {[%clk 0:16:27]} 48... Kc7 {[%clk 0:25:34]} 49. g6
{[%clk 0:15:54]} 49... a4 {[%clk 0:24:50]} 50. Rh7+ {[%clk 0:08:23]} 50... Kb6
{[%clk 0:24:06]} 51. Rd7 {[%clk 0:03:23]} 51... Bc3 {[%clk 0:22:16]} 52. Rff7
{[%clk 0:02:33]} 52... Rh8 {[%clk 0:15:16]} 53. g7 {[%clk 0:01:31]} 53... Bxg7
{[%clk 0:12:51]} 54. Rxg7 {[%clk 0:01:52]} 54... Rxh4 {[%clk 0:13:17]} 55. Ra7
{[%clk 0:01:35]} 55... Rb4 {[%clk 0:13:27]} 56. Rab7+ {[%clk 0:01:06]} 56... Ka5
{[%clk 0:13:28]} 57. Ra7+ {[%clk 0:00:47]} 57... Kb6 {[%clk 0:13:54]} 58. Rab7+
{[%clk 0:00:44]} 58... Ka5 {[%clk 0:14:09]} 59. Ra7+ {[%clk 0:00:34]} 59... Kb6
{[%clk 0:14:35]} 1/2-1/2

[Variant "Standard"]
[Site "Europe Echecs"]

[Event "Sunway Sitges Chess Festival"]
[Date "2024.12.21"]
[White "Schulman, Julia"]
[Black "Delgado Montanes, Jose Antonio"]
[WhiteElo "1852"]
[BlackElo "1988"]
[Round "4.39"]
[Result "1/2-1/2"]
[TimeControl "40/5400+30:1800+30"]

1. e4 {[%clk 1:30:56]} 1... c5 {[%clk 1:30:55]} 2. Nf3 {[%clk 1:31:15]} 2... g6
{[%clk 1:31:18]} 3. c3 {[%clk 1:31:36]} 3... Bg7 {[%clk 1:31:02]} 4. d4 {[%clk
1:30:50]} 4... cxd4 {[%clk 1:31:25]} 5. cxd4 {[%clk 1:31:08]} 5... d5 {[%clk
1:31:49]} 6. e5 {[%clk 1:31:27]} 6... Nh6 {[%clk 1:31:47]} 7. Bd3 {[%clk
1:28:30]} 7... Nc6 {[%clk 1:30:45]} 8. h3 {[%clk 1:26:29]} 8... O-O {[%clk
1:30:34]} 9. Nc3 {[%clk 1:20:36]} 9... f6 {[%clk 1:25:06]} 10. exf6 {[%clk
1:14:01]} 10... exf6 {[%clk 1:23:00]} 11. O-O {[%clk 1:13:19]} 11... Nf5 {[%clk
1:20:42]} 12. Bb1 {[%clk 1:06:23]} 12... Be6 {[%clk 1:16:40]} 13. Ne2 {[%clk
1:01:44]} 13... Qd7 {[%clk 1:15:53]} 14. Nf4 {[%clk 0:52:21]} 14... Bf7 {[%clk
1:14:00]} 15. a3 {[%clk 0:47:59]} 15... Rfe8 {[%clk 1:07:52]} 16. b4 {[%clk
0:43:53]} 16... a6 {[%clk 1:07:57]} 17. Bxf5 {[%clk 0:41:57]} 17... Qxf5 {[%clk
1:08:08]} 18. Nd3 {[%clk 0:40:32]} 18... g5 {[%clk 1:03:10]} 19. Be3 {[%clk
0:35:10]} 19... Re7 {[%clk 1:01:16]} 20. Rc1 {[%clk 0:33:03]} 20... Rae8 {[%clk
0:59:50]} 21. Nc5 {[%clk 0:29:10]} 21... Nd8 {[%clk 0:59:45]} 22. Rc3 {[%clk
0:25:43]} 22... h5 {[%clk 0:59:18]} 23. Nh2 {[%clk 0:25:33]} 23... Ne6 {[%clk
0:55:19]} 24. Nd3 {[%clk 0:22:00]} 24... Nf8 {[%clk 0:51:37]} 25. Nc5 {[%clk
0:21:45]} 25... Qg6 {[%clk 0:48:44]} 26. Qd2 {[%clk 0:19:46]} 26... Bh6 {[%clk
0:47:43]} 27. f4 {[%clk 0:18:35]} 27... g4 {[%clk 0:41:37]} 28. hxg4 {[%clk
0:14:14]} 28... hxg4 {[%clk 0:41:31]} 29. g3 {[%clk 0:13:24]} 29... f5 {[%clk
0:40:43]} 30. Re1 {[%clk 0:10:49]} 30... Bg7 {[%clk 0:38:57]} 31. Nd3 {[%clk
0:10:38]} 31... Qb6 {[%clk 0:33:55]} 32. Ne5 {[%clk 0:10:11]} 32... Be6 {[%clk
0:32:17]} 33. Rec1 {[%clk 0:09:41]} 33... Nh7 {[%clk 0:30:14]} 34. Ng6 {[%clk
0:09:18]} 34... Rf7 {[%clk 0:24:55]} 35. Ne5 {[%clk 0:09:09]} 35... Rfe7 {[%clk
0:24:53]} 36. Ng6 {[%clk 0:09:33]} 36... Rf7 {[%clk 0:25:03]} 37. Ne5 {[%clk
0:10:01]} 37... Rfe7 {[%clk 0:23:43]} 1/2-1/2

[Variant "Standard"]
[Site "Europe Echecs"]

[Event "Sunway Sitges Chess Festival"]
[Date "2024.12.21"]
[White "Vargas Drechsler, Carlos"]
[Black "Koridze, Lile"]
[WhiteElo "1929"]
[BlackElo "2107"]
[Round "4.40"]
[Result "0-1"]
[TimeControl "40/5400+30:1800+30"]

1. Nf3 {[%clk 1:30:51]} 1... Nf6 {[%clk 1:30:45]} 2. c4 {[%clk 1:31:13]} 2... e6
{[%clk 1:30:59]} 3. g3 {[%clk 1:31:22]} 3... d5 {[%clk 1:31:16]} 4. d4 {[%clk
1:31:40]} 4... Bb4+ {[%clk 1:31:13]} 5. Nbd2 {[%clk 1:27:19]} 5... O-O {[%clk
1:29:30]} 6. a3 {[%clk 1:18:52]} 6... Bxd2+ {[%clk 1:18:44]} 7. Bxd2 {[%clk
1:16:15]} 7... b6 {[%clk 1:17:22]} 8. Bg2 {[%clk 1:28:05]} 8... Bb7 {[%clk
1:14:17]} 9. cxd5 {[%clk 1:21:11]} 9... Bxd5 {[%clk 1:14:05]} 10. O-O {[%clk
1:19:00]} 10... Nbd7 {[%clk 1:13:44]} 11. Rc1 {[%clk 1:15:06]} 11... c5 {[%clk
1:06:43]} 12. dxc5 {[%clk 1:14:33]} 12... Nxc5 {[%clk 1:05:42]} 13. Bb4 {[%clk
1:08:21]} 13... Rc8 {[%clk 1:03:00]} 14. Bxc5 {[%clk 1:07:35]} 14... bxc5 {[%clk
1:01:09]} 15. Ne5 {[%clk 0:58:47]} 15... Qb6 {[%clk 0:58:30]} 16. Bxd5 {[%clk
0:57:30]} 16... exd5 {[%clk 0:57:11]} 17. Qc2 {[%clk 0:54:49]} 17... Rfe8 {[%clk
0:46:04]} 18. Nd3 {[%clk 0:47:01]} 18... c4 {[%clk 0:39:56]} 19. Nf4 {[%clk
0:43:58]} 19... Rb8 {[%clk 0:33:32]} 20. Rb1 {[%clk 0:28:05]} 20... Qd6 {[%clk
0:31:08]} 21. Rfd1 {[%clk 0:25:54]} 21... Qe5 {[%clk 0:29:42]} 22. e3 {[%clk
1:02:38]} 22... h6 {[%clk 0:24:15]} 23. Ne2 {[%clk 0:51:33]} 23... Re6 {[%clk
0:16:03]} 24. Nd4 {[%clk 0:50:08]} 24... Reb6 25. Qa4 {[%clk 0:46:37]} 25...
Rxb2 {[%clk 0:14:00]} 26. Nc6 {[%clk 0:41:46]} 26... Qe8 {[%clk 0:13:43]} 27.
Rbc1 {[%clk 0:40:41]} 27... R2b6 {[%clk 0:13:13]} 0-1

[Variant "Standard"]
[Site "Europe Echecs"]